fUSD/lending_fUSD_20250219
["ID","MTS","AMOUNT","RATE_DAILY","PERIOD"]
[353695339,1739991124640,-1098.62,0.00012353,2]
[353695340,1739991124649,-602.42,0.00012353,2]
[353695341,1739991124660,-1563.53,0.00012353,2]
[353695342,1739991124670,-1617.89,0.00012353,2]
[353695343,1739991124681,-568.32,0.00012353,2]
[353695344,1739991124691,-1902.45,0.00012353,2]
[353695345,1739991124704,-500.0,0.00012353,2]
[353695346,1739991124714,-997.72,0.00012353,2]
[353695347,1739991124725,-1224.85,0.00012353,2]
[353695348,1739991124734,-1076.75,0.00012353,2]
[353695349,1739991124745,-1287.1,0.00012353,2]
[353695350,1739991124755,-507.43,0.00012353,2]
[353695351,1739991124765,-1834.21,0.00012353,2]
[353695352,1739991124775,-1131.11,0.00012353,2]
[353695353,1739991124785,-1818.6,0.00012353,2]
[353695354,1739991124795,-500.0,0.00012353,2]
[353695355,1739991124804,-967.39,0.00012353,2]
[353695356,1739991124814,-613.64,0.00012353,2]
[353695357,1739991124824,-500.0,0.00012353,2]
[353695358,1739991124834,-1954.75,0.00012353,2]
[353695359,1739991124844,-1010.26,0.00012353,2]
[353695360,1739991124853,-500.0,0.00012353,2]
[353695361,1739991125013,-651.03,0.00012353,2]
[353695362,1739991125041,-825.62,0.00012353,2]
[353695363,1739991125052,-500.0,0.00012353,2]
[353695364,1739991125062,-548.11529544,0.00012353,2]
[353695365,1739991125072,-1110.11,0.00012353,2]
[353695366,1739991125082,-774.36,0.00012353,2]
[353695367,1739991125093,-811.92,0.00012353,2]
[353695368,1739991125103,-1151.56,0.00012353,2]
[353695369,1739991125116,-500.0,0.00012353,2]
[353695370,1739991125125,-1042.18,0.00012353,2]
[353695371,1739991125135,-500.0,0.00012353,2]
[353695372,1739991125145,-534.83,0.00012353,2]
[353695373,1739991125155,-619.91,0.00012353,2]
[353695374,1739991125165,-533.51,0.00012353,2]
[353695375,1739991125175,-581.26,0.00012353,2]
[353695376,1739991125186,-500.0,0.00012353,2]
[353695377,1739991125198,-500.0,0.00012353,2]
[353695378,1739991125208,-500.0,0.00012353,2]
[353695379,1739991125218,-849.02,0.00012353,2]
[353695380,1739991125227,-563.08,0.00012353,2]
[353695381,1739991125236,-758.16,0.00012353,2]
[353695382,1739991125246,-500.0,0.00012353,2]
[353695383,1739991125257,-4591.741,0.00012356,2]
[353695384,1739991125267,-1893.0,0.0001238,2]
[353695385,1739991125277,-220.9629925,0.00012382,2]
[353695386,1739991125289,-4255.11716225,0.00012402,2]
[353695387,1739991125298,-1285.43,0.00012433,2]
[353695388,1739991125308,-2055.78,0.00012433,2]
[353695389,1739991125318,-1176.26,0.00012433,2]
[353695390,1739991125327,-1598.02,0.00012433,2]
[353695391,1739991125338,-1177.64,0.00012433,2]
[353695392,1739991125347,-1728.13,0.00012433,2]
[353695393,1739991125357,-1464.57,0.00012433,2]
[353695394,1739991125368,-988.1,0.00012433,2]
[353695395,1739991125378,-1523.71,0.00012433,2]
[353695396,1739991125387,-1697.79,0.00012433,2]
[353695397,1739991125396,-914.84,0.00012433,2]
[353695398,1739991125407,-1345.01,0.00012433,2]
[353695399,1739991125417,-1899.5,0.00012433,2]
[353695400,1739991125427,-835.97,0.00012433,2]
[353695401,1739991125437,-1253.59,0.00012433,2]
[353695402,1739991125448,-676.35,0.00012433,2]
[353695403,1739991125460,-1199.2,0.00012433,2]
[353695404,1739991125471,-1444.06,0.00012433,2]
[353695405,1739991125481,-1165.51,0.00012433,2]
[353695406,1739991125491,-1110.09,0.00012433,2]
[353695407,1739991125502,-955.77,0.00012433,2]
[353695408,1739991125511,-1702.36,0.00012433,2]
[353695409,1739991125521,-500.0,0.00012433,2]
[353695410,1739991125531,-1068.07,0.00012433,2]
[353695411,1739991125544,-541.29,0.00012433,2]
[353695412,1739991125555,-500.0,0.00012434,2]
[353695413,1739991125566,-958.09,0.00012434,2]
[353695414,1739991125576,-177.00685881,0.00012434,2]
[353695415,1739991125585,-638.44,0.00012434,2]
[353695416,1739991125595,-1305.17,0.00012434,2]
[353695417,1739991125605,-1013.4,0.00012434,2]
[353695418,1739991125614,-800.82,0.00012434,2]
[353695419,1739991125624,-273.38578646,0.00012434,2]
[353695420,1739991125634,-1291.22,0.00012434,2]
[353695421,1739991125644,-500.0,0.00012434,2]
[353695422,1739991125654,-1100.17,0.00012434,2]
[353695423,1739991125664,-564.03,0.00012435,2]
[353695424,1739991125674,-500.0,0.00012435,2]
[353695425,1739991125683,-711.12,0.00012435,2]
[353695426,1739991125695,-500.0,0.00012435,2]
[353695427,1739991125704,-567.75,0.00012435,2]
[353695428,1739991125714,-774.79,0.00012435,2]
[353695429,1739991125726,-648.92,0.00012435,2]
[353695430,1739991125736,-500.0,0.00012435,2]
[353695431,1739991125746,-939.76,0.00012435,2]
[353695432,1739991125756,-500.0,0.00012435,2]
[353695433,1739991125766,-726.31,0.00012435,2]
[353695434,1739991125777,-527.6,0.00012435,2]
[353695435,1739991125786,-637.14,0.00012435,2]
[353695436,1739991125797,-335.282174,0.00012435,2]
[353695437,1739991125807,-501.4,0.00012435,2]
[353695438,1739991125817,-550.13,0.00012435,2]
[353695439,1739991125826,-445.363227,0.00012435,2]
[353695440,1739991125836,-566.24,0.00012435,2]
[353695441,1739991125846,-605.64,0.00012435,2]
[353695442,1739991125856,-705.7,0.00012435,2]
[353695443,1739991125866,-670.06,0.00012435,2]
[353695444,1739991125876,-1007.94,0.00012435,2]
[353695445,1739991125886,-500.0,0.00012435,2]
[353695446,1739991125896,-500.0,0.00012435,2]
[353695447,1739991125905,-500.0,0.00012435,2]
[353695448,1739991125915,-741.15,0.00012435,2]
[353695449,1739991125925,-917.52,0.00012435,2]
[353695450,1739991125935,-653.65,0.00012435,2]
[353695451,1739991125945,-1164.92,0.00012435,2]
[353695452,1739991125954,-500.0,0.00012435,2]
[353695453,1739991125964,-1009.77,0.00012435,2]
[353695454,1739991125974,-1086.24,0.00012435,2]
[353695455,1739991125984,-575.12,0.00012435,2]
[353695456,1739991125995,-1103.11,0.00012435,2]
[353695457,1739991126005,-500.0,0.00012435,2]
[353695458,1739991126015,-1008.4,0.00012435,2]
[353695459,1739991126025,-500.0,0.00012435,2]
[353695460,1739991126035,-648.67,0.00012435,2]
[353695461,1739991126045,-689.09,0.00012435,2]
[353695462,1739991126055,-1109.15,0.00012435,2]
[353695463,1739991126066,-752.25,0.00012435,2]
[353695464,1739991126076,-712.53,0.00012435,2]
[353695465,1739991126085,-709.82,0.00012435,2]
[353695466,1739991126096,-759.69,0.00012435,2]
[353695467,1739991126106,-844.15,0.00012435,2]
[353695468,1739991126115,-1035.94,0.00012435,2]
[353695469,1739991126126,-1177.99,0.00012435,2]
[353695470,1739991126135,-939.45,0.00012435,2]
[353695471,1739991126145,-934.24,0.00012435,2]
[353695472,1739991126155,-970.06,0.00012435,2]
[353695473,1739991126166,-1565.74,0.00012435,2]
[353695474,1739991126176,-842.16,0.00012435,2]
[353695475,1739991126185,-1231.95,0.00012435,2]
[353695476,1739991126195,-833.68,0.00012435,2]
[353695477,1739991126204,-779.39,0.00012435,2]
[353695478,1739991126214,-1114.74,0.00012435,2]
[353695479,1739991126225,-1384.51,0.00012435,2]
[353695480,1739991126234,-992.43,0.00012435,2]
[353695481,1739991126244,-700.4,0.00012435,2]
[353695482,1739991126254,-896.41,0.00012435,2]
[353695483,1739991126264,-835.28,0.00012435,2]
[353695484,1739991126273,-730.1,0.00012435,2]
[353695485,1739991126284,-638.47,0.00012435,2]
[353695486,1739991126294,-722.91,0.00012435,2]
[353695487,1739991126303,-700.98,0.00012435,2]
[353695488,1739991126313,-1307.87,0.00012435,2]
[353695489,1739991126323,-500.0,0.00012435,2]
[353695490,1739991126332,-887.61,0.00012435,2]
[353695491,1739991126342,-1299.23,0.00012435,2]
[353695492,1739991126351,-537.11,0.00012435,2]
[353695493,1739991126361,-1563.31,0.00012435,2]
[353695494,1739991126371,-1023.26,0.00012435,2]
[353695495,1739991126380,-626.84,0.00012435,2]
[353695496,1739991126390,-500.0,0.00012435,2]
[353695497,1739991126400,-1193.06,0.00012435,2]
[353695498,1739991126410,-809.28,0.00012435,2]
[353695499,1739991126419,-569.98,0.00012435,2]
[353695500,1739991126429,-947.29,0.00012435,2]
[353695501,1739991126439,-500.0,0.00012435,2]
[353695502,1739991126449,-1098.62,0.00012435,2]
[353695503,1739991126460,-738.85,0.00012435,2]
[353695504,1739991126471,-602.42,0.00012435,2]
[353695505,1739991126480,-1563.53,0.00012435,2]
[353695506,1739991126490,-500.0,0.00012435,2]
[353695507,1739991126500,-819.36,0.00012435,2]
[353695508,1739991126511,-504.01,0.00012435,2]
[353695509,1739991126521,-1617.89,0.00012435,2]
[353695510,1739991126532,-841.31,0.00012435,2]
[353695511,1739991126542,-716.57,0.00012435,2]
[353695512,1739991126552,-568.32,0.00012435,2]
[353695513,1739991126562,-1059.78,0.00012435,2]
[353695514,1739991126571,-1902.45,0.00012435,2]
[353695515,1739991126582,-685.17,0.00012435,2]
[353695516,1739991126591,-948.49,0.00012435,2]
[353695517,1739991126601,-1210.93,0.00012435,2]
[353695518,1739991126610,-500.0,0.00012435,2]
[353695519,1739991126620,-997.72,0.00012435,2]
[353695520,1739991126630,-1232.61,0.00012435,2]
[353695521,1739991126639,-1224.85,0.00012435,2]
[353695522,1739991126648,-660.75,0.00012435,2]
[353695523,1739991126658,-722.62,0.00012435,2]
[353695524,1739991126668,-856.89,0.00012435,2]
[353695525,1739991126678,-1076.75,0.00012435,2]
[353695526,1739991126688,-529.4,0.00012435,2]
[353695527,1739991126698,-1287.1,0.00012435,2]
[353695528,1739991126708,-1123.65,0.00012435,2]
[353695529,1739991126717,-507.43,0.00012435,2]
[353695530,1739991126727,-767.14,0.00012435,2]
[353695531,1739991126736,-838.25,0.00012435,2]
[353695532,1739991126746,-1834.21,0.00012435,2]
[353695533,1739991126755,-857.74,0.00012435,2]
[353695534,1739991126765,-1131.11,0.00012435,2]
[353695535,1739991126775,-702.31,0.00012435,2]
[353695536,1739991126785,-1818.6,0.00012435,2]
[353695537,1739991126795,-967.39,0.00012435,2]
[353695538,1739991126805,-500.0,0.00012435,2]
[353695539,1739991126814,-766.99,0.00012435,2]
[353695540,1739991126824,-1022.47,0.00012435,2]
[353695541,1739991126833,-1271.18,0.00012435,2]
[353695542,1739991126844,-562.14,0.00012435,2]
[353695543,1739991126855,-613.64,0.00012435,2]
[353695544,1739991126865,-1255.93,0.00012435,2]
[353695545,1739991126875,-500.0,0.00012435,2]
[353695546,1739991126884,-735.72,0.00012435,2]
[353695547,1739991126894,-1023.77,0.00012435,2]
[353695548,1739991126904,-1954.75,0.00012435,2]
[353695549,1739991126913,-741.16,0.00012435,2]
[353695550,1739991126923,-500.0,0.00012435,2]
[353695551,1739991126933,-1492.46,0.00012435,2]
[353695552,1739991126944,-1010.26,0.00012435,2]
[353695553,1739991126954,-1211.99,0.00012435,2]
[353695554,1739991126964,-500.0,0.00012435,2]
[353695555,1739991126974,-908.55,0.00012435,2]
[353695556,1739991126984,-651.03,0.00012435,2]
[353695557,1739991126993,-1115.3,0.00012435,2]
[353695558,1739991127003,-622.28,0.00012435,2]
[353695559,1739991127012,-825.62,0.00012435,2]
[353695560,1739991127022,-725.41,0.00012435,2]
[353695561,1739991127032,-1312.13,0.00012435,2]
[353695562,1739991127041,-500.0,0.00012435,2]
[353695563,1739991127051,-1135.89,0.00012435,2]
[353695564,1739991127061,-626.24,0.00012435,2]
[353695565,1739991127070,-873.22,0.00012435,2]
[353695566,1739991127079,-500.0,0.00012435,2]
[353695567,1739991127089,-828.64,0.00012435,2]
[353695568,1739991127099,-1067.13,0.00012435,2]
[353695569,1739991127109,-760.82,0.00012435,2]
[353695570,1739991127119,-959.81,0.00012435,2]
[353695571,1739991127128,-1130.2,0.00012435,2]
[353695572,1739991127141,-621.03,0.00012435,2]
[353695573,1739991127151,-837.8,0.00012435,2]
[353695574,1739991127160,-687.97,0.00012435,2]
[353695575,1739991127169,-524.85,0.00012435,2]
[353695576,1739991127179,-763.25,0.00012435,2]
[353695577,1739991127188,-1453.26,0.00012435,2]
[353695578,1739991127198,-1110.11,0.00012435,2]
[353695579,1739991127208,-2178.41,0.00012435,2]
[353695580,1739991127217,-2978.68,0.00012435,2]
[353695581,1739991127227,-867.64,0.00012435,2]
[353695582,1739991127237,-618.26023051,0.00012435,2]
[353695583,1739991127247,-774.36,0.00012435,2]
[353695584,1739991127258,-811.92,0.00012435,2]
[353695585,1739991127267,-909.17,0.00012435,2]
[353695586,1739991127278,-944.41,0.00012435,2]
[353695587,1739991127289,-1335.65,0.00012435,2]
[353695588,1739991127299,-1536.77,0.00012435,2]
[353695589,1739991127308,-1667.3,0.00012435,2]
[353695590,1739991127318,-1151.56,0.00012435,2]
[353695591,1739991127327,-2300.26,0.00012435,2]
[353695592,1739991127337,-1054.96,0.00012435,2]
[353695593,1739991127347,-3967.01,0.00012435,2]
[353695594,1739991127357,-2151.49,0.00012435,2]
[353695595,1739991127366,-500.0,0.00012435,2]
[353695596,1739991127375,-500.0,0.00012435,2]
[353695597,1739991127384,-1026.98,0.00012435,2]
[353695598,1739991127393,-1717.95,0.00012435,2]
[353695599,1739991127403,-723.0,0.00012435,2]
[353695600,1739991127411,-858.82,0.00012435,2]
[353695601,1739991127421,-736.71,0.00012435,2]
[353695602,1739991127430,-731.07,0.00012435,2]
[353695603,1739991127440,-808.06,0.00012435,2]
[353695604,1739991127451,-1042.18,0.00012435,2]
[353695605,1739991127464,-500.0,0.00012435,2]
[353695606,1739991127474,-1003.52,0.00012435,2]
[353695607,1739991127484,-500.0,0.00012435,2]
[353695608,1739991127493,-1216.45,0.00012435,2]
[353695609,1739991127503,-261.2617248,0.00012435,2]
[353695610,1739991127513,-897.65,0.00012435,2]
[353695611,1739991127523,-969.77,0.00012435,2]
[353695612,1739991127533,-534.83,0.00012435,2]
[353695613,1739991127545,-1228.25,0.00012435,2]
[353695614,1739991127556,-597.7,0.00012435,2]
[353695615,1739991127565,-2264.91,0.00012435,2]
[353695616,1739991127574,-500.0,0.00012435,2]
[353695617,1739991127583,-1031.26,0.00012435,2]
[353695618,1739991127593,-813.49,0.00012435,2]
[353695619,1739991127602,-807.9,0.00012435,2]
[353695620,1739991127612,-952.43,0.00012435,2]
[353695621,1739991127622,-1249.19,0.00012435,2]
[353695622,1739991127633,-943.59,0.00012435,2]
[353695623,1739991127643,-1931.39,0.00012435,2]
[353695624,1739991127654,-699.69,0.00012435,2]
[353695625,1739991127808,-736.37,0.00012435,2]
[353695626,1739991127832,-1349.59,0.00012435,2]
[353695627,1739991127842,-2136.43,0.00012435,2]
[353695628,1739991127853,-619.91,0.00012435,2]
[353695629,1739991127862,-763.21,0.00012435,2]
[353695630,1739991127872,-1308.13,0.00012435,2]
[353695631,1739991127882,-676.6,0.00012435,2]
[353695632,1739991127891,-1669.19,0.00012435,2]
[353695633,1739991127900,-2496.14,0.00012435,2]
[353695634,1739991127909,-838.79,0.00012435,2]
[353695635,1739991127919,-533.51,0.00012435,2]
[353695636,1739991127929,-348.12787042,0.00012435,2]
[353695637,1739991127939,-844.7,0.00012435,2]
[353695638,1739991127949,-1038.95,0.00012435,2]
[353695639,1739991127959,-643.34,0.00012435,2]
[353695640,1739991127968,-862.23,0.00012435,2]
[353695641,1739991127977,-1682.85,0.00012435,2]
[353695642,1739991127987,-972.98,0.00012435,2]
[353695643,1739991127996,-1170.77,0.00012435,2]
[353695644,1739991128006,-1036.38,0.00012435,2]
[353695645,1739991128016,-665.65,0.00012435,2]
[353695646,1739991128025,-500.0,0.00012435,2]
[353695647,1739991128035,-816.32,0.00012435,2]
[353695648,1739991128044,-1472.21,0.00012435,2]
[353695649,1739991128054,-1143.91,0.00012435,2]
[353695650,1739991128063,-581.26,0.00012435,2]
[353695651,1739991128073,-500.0,0.00012435,2]
[353695652,1739991128082,-7684.69,0.00012435,2]
[353695653,1739991128091,-1239.55,0.00012435,2]
[353695654,1739991128101,-1609.82,0.00012435,2]
[353695655,1739991128110,-694.56,0.00012435,2]
[353695656,1739991128120,-846.99168172,0.00012435,2]
[353695657,1739991128129,-677.2,0.00012435,2]
[353695658,1739991128139,-1545.54,0.00012435,2]
[353695659,1739991128149,-1349.76,0.00012435,2]
[353695660,1739991128158,-1288.85,0.00012435,2]
[353695661,1739991128168,-591.57,0.00012435,2]
[353695662,1739991128177,-1045.64,0.00012435,2]
[353695663,1739991128186,-395.59342613,0.00012435,2]
[353695664,1739991128195,-544.71,0.00012435,2]
[353695665,1739991128206,-515.07,0.00012435,2]
[353695666,1739991128215,-500.0,0.00012435,2]
[353695667,1739991128225,-864.21,0.00012435,2]
[353695668,1739991128234,-1217.73,0.00012435,2]
[353695669,1739991128244,-1242.44,0.00012435,2]
[353695670,1739991128254,-608.9,0.00012435,2]
[353695671,1739991128263,-500.0,0.00012435,2]
[353695672,1739991128271,-1333.33,0.00012435,2]
[353695673,1739991128280,-2099.28,0.00012435,2]
[353695674,1739991128290,-646.88,0.00012435,2]
[353695675,1739991128299,-1098.74,0.00012435,2]
[353695676,1739991128308,-500.0,0.00012435,2]
[353695677,1739991128317,-631.78,0.00012435,2]
[353695678,1739991128327,-1305.78,0.00012435,2]
[353695679,1739991128336,-814.94,0.00012435,2]
[353695680,1739991128345,-591.42,0.00012435,2]
[353695681,1739991128355,-500.0,0.00012435,2]
[353695682,1739991128364,-1698.82,0.00012435,2]
[353695683,1739991128374,-1656.29,0.00012435,2]
[353695684,1739991128383,-958.07,0.00012435,2]
[353695685,1739991128393,-1140.78,0.00012435,2]
[353695686,1739991128402,-1343.79,0.00012435,2]
[353695687,1739991128412,-1109.34,0.00012435,2]
[353695688,1739991128421,-940.17,0.00012435,2]
[353695689,1739991128431,-3616.83,0.00012435,2]
[353695690,1739991128441,-1068.94,0.00012435,2]
[353695691,1739991128451,-242.01224704,0.00012435,2]
[353695692,1739991128463,-1192.02,0.00012435,2]
[353695693,1739991128472,-1134.66,0.00012435,2]
[353695694,1739991128482,-1387.53,0.00012435,2]
[353695695,1739991128492,-525.63,0.00012435,2]
[353695696,1739991128503,-1867.51,0.00012435,2]
[353695697,1739991128513,-1262.86,0.00012435,2]
[353695698,1739991128523,-1225.46,0.00012435,2]
[353695699,1739991128532,-849.02,0.00012435,2]
[353695700,1739991128541,-1283.85,0.00012435,2]
[353695701,1739991128552,-1033.15,0.00012435,2]
[353695702,1739991128561,-1890.5,0.00012435,2]
[353695703,1739991128572,-563.08,0.00012435,2]
[353695704,1739991128581,-1247.13,0.00012435,2]
[353695705,1739991128591,-953.52,0.00012435,2]
[353695706,1739991128602,-701.13,0.00012435,2]
[353695707,1739991128612,-606.51,0.00012435,2]
[353695708,1739991128621,-500.0,0.00012435,2]
[353695709,1739991128631,-837.99,0.00012435,2]
[353695710,1739991128640,-758.16,0.00012435,2]
[353695711,1739991128650,-852.55,0.00012435,2]
[353695712,1739991128659,-1040.5,0.00012435,2]
[353695713,1739991128668,-626.51,0.00012435,2]
[353695714,1739991128678,-398.88626171,0.00012435,2]
[353695715,1739991128686,-163.05610438,0.00012445,2]
[353695716,1739991128695,-500.0,0.00012516,2]
[353695717,1739991128704,-958.09,0.00012516,2]
[353695718,1739991128713,-638.44,0.00012516,2]
[353695719,1739991128723,-1305.17,0.00012516,2]
[353695720,1739991128732,-1013.4,0.00012516,2]
[353695721,1739991128742,-800.82,0.00012516,2]
[353695722,1739991128752,-1291.22,0.00012516,2]
[353695723,1739991128761,-500.0,0.00012516,2]
[353695724,1739991128771,-1100.17,0.00012516,2]
[353695725,1739991128780,-1285.43,0.00012516,2]
[353695726,1739991128789,-2055.78,0.00012516,2]
[353695727,1739991128798,-1176.26,0.00012516,2]
[353695728,1739991128808,-1598.02,0.00012516,2]
[353695729,1739991128817,-1177.64,0.00012516,2]
[353695730,1739991128826,-1728.13,0.00012516,2]
[353695731,1739991128835,-1464.57,0.00012516,2]
[353695732,1739991128845,-988.1,0.00012516,2]
[353695733,1739991128854,-1523.71,0.00012516,2]
[353695734,1739991128863,-1697.79,0.00012516,2]
[353695735,1739991128872,-914.84,0.00012516,2]
[353695736,1739991128882,-1345.01,0.00012516,2]
[353695737,1739991128891,-1899.5,0.00012516,2]
[353695738,1739991128900,-835.97,0.00012516,2]
[353695739,1739991128910,-1253.59,0.00012516,2]
[353695740,1739991128919,-676.35,0.00012516,2]
[353695741,1739991128927,-1199.2,0.00012516,2]
[353695742,1739991128936,-1444.06,0.00012516,2]
[353695743,1739991128947,-1165.51,0.00012516,2]
[353695744,1739991128956,-1110.09,0.00012516,2]
[353695745,1739991128965,-955.77,0.00012516,2]
[353695746,1739991128975,-1702.36,0.00012516,2]
[353695747,1739991128995,-500.0,0.00012516,2]
[353695748,1739991129012,-1068.07,0.00012516,2]
[353695749,1739991129032,-541.29,0.00012516,2]
[353695750,1739991129050,-564.03,0.00012517,2]
[353695751,1739991129065,-240.5157085,0.00012517,2]
[353695752,1739991129085,-335.282174,0.00012517,2]
[353695753,1739991129104,-445.363227,0.00012517,2]
[353695754,1739991129123,-566.24,0.00012517,2]
[353695755,1739991129141,-705.7,0.00012517,2]
[353695756,1739991129160,-1007.94,0.00012517,2]
[353695757,1739991129178,-1164.92,0.00012517,2]
[353695758,1739991129193,-1009.77,0.00012517,2]
[353695759,1739991129211,-1086.24,0.00012517,2]
[353695760,1739991129225,-1103.11,0.00012517,2]
[353695761,1739991129242,-500.0,0.00012517,2]
[353695762,1739991129255,-689.09,0.00012517,2]
[353695763,1739991129273,-1109.15,0.00012517,2]
[353695764,1739991129290,-752.25,0.00012517,2]
[353695765,1739991129304,-712.53,0.00012517,2]
[353695766,1739991129319,-844.15,0.00012517,2]
[353695767,1739991129334,-1035.94,0.00012517,2]
[353695768,1739991129349,-1177.99,0.00012517,2]
[353695769,1739991129365,-970.06,0.00012517,2]
[353695770,1739991129379,-842.16,0.00012517,2]
[353695771,1739991129394,-1231.95,0.00012517,2]
[353695772,1739991129409,-833.68,0.00012517,2]
[353695773,1739991129423,-1384.51,0.00012517,2]
[353695774,1739991129438,-992.43,0.00012517,2]
[353695775,1739991129452,-700.4,0.00012517,2]
[353695776,1739991129471,-896.41,0.00012517,2]
[353695777,1739991129486,-835.28,0.00012517,2]
[353695778,1739991129501,-730.1,0.00012517,2]
[353695779,1739991129516,-638.47,0.00012517,2]
[353695780,1739991129532,-722.91,0.00012517,2]
[353695781,1739991129549,-700.98,0.00012517,2]
[353695782,1739991129563,-500.0,0.00012517,2]
[353695783,1739991129578,-887.61,0.00012517,2]
[353695784,1739991129593,-1299.23,0.00012517,2]
[353695785,1739991129607,-537.11,0.00012517,2]
[353695786,1739991129622,-1023.26,0.00012517,2]
[353695787,1739991129637,-500.0,0.00012517,2]
[353695788,1739991129653,-1193.06,0.00012517,2]
[353695789,1739991129667,-809.28,0.00012517,2]
[353695790,1739991129681,-569.98,0.00012517,2]
[353695791,1739991129695,-947.29,0.00012517,2]
[353695792,1739991129710,-738.85,0.00012517,2]
[353695793,1739991129724,-500.0,0.00012517,2]
[353695794,1739991129739,-819.36,0.00012517,2]
[353695795,1739991129754,-504.01,0.00012517,2]
[353695796,1739991129769,-841.31,0.00012517,2]
[353695797,1739991129784,-716.57,0.00012517,2]
[353695798,1739991129798,-1059.78,0.00012517,2]
[353695799,1739991129813,-685.17,0.00012517,2]
[353695800,1739991129827,-948.49,0.00012517,2]
[353695801,1739991129843,-1210.93,0.00012517,2]
[353695802,1739991129857,-1232.61,0.00012517,2]
[353695803,1739991129872,-660.75,0.00012517,2]
[353695804,1739991129886,-722.62,0.00012517,2]
[353695805,1739991129901,-856.89,0.00012517,2]
[353695806,1739991129915,-1893.0,0.00012517,2]
[353695807,1739991129932,-529.4,0.00012517,2]
[353695808,1739991129947,-1123.65,0.00012517,2]
[353695809,1739991129962,-767.14,0.00012517,2]
[353695810,1739991129977,-838.25,0.00012517,2]
[353695811,1739991129993,-857.74,0.00012517,2]
[353695812,1739991130007,-702.31,0.00012517,2]
[353695813,1739991130021,-766.99,0.00012517,2]
[353695814,1739991130036,-1022.47,0.00012517,2]
[353695815,1739991130049,-1271.18,0.00012517,2]
[353695816,1739991130065,-562.14,0.00012517,2]
[353695817,1739991130080,-1255.93,0.00012517,2]
[353695818,1739991130095,-735.72,0.00012517,2]
[353695819,1739991130111,-1023.77,0.00012517,2]
[353695820,1739991130126,-741.16,0.00012517,2]
[353695821,1739991130141,-500.0,0.00012517,2]
[353695822,1739991130157,-1492.46,0.00012517,2]
[353695823,1739991130172,-1211.99,0.00012517,2]
[353695824,1739991130188,-908.55,0.00012517,2]
[353695825,1739991130204,-1115.3,0.00012517,2]
[353695826,1739991130220,-622.28,0.00012517,2]
[353695827,1739991130236,-725.41,0.00012517,2]
[353695828,1739991130250,-1312.13,0.00012517,2]
[353695829,1739991130265,-500.0,0.00012517,2]
[353695830,1739991130280,-1135.89,0.00012517,2]
[353695831,1739991130297,-626.24,0.00012517,2]
[353695832,1739991130311,-873.22,0.00012517,2]
[353695833,1739991130326,-828.64,0.00012517,2]
[353695834,1739991130342,-1067.13,0.00012517,2]
[353695835,1739991130357,-760.82,0.00012517,2]
[353695836,1739991130372,-959.81,0.00012517,2]
[353695837,1739991130387,-1130.2,0.00012517,2]
[353695838,1739991130403,-621.03,0.00012517,2]